fUST/lending_fUST_20250806
["ID","MTS","AMOUNT","RATE_DAILY","PERIOD"]
[377458925,1754416272825,-501.70518215,0.00029041,2]
[377458926,1754416272835,-460.0,0.00029041,2]
[377458927,1754416272845,-198.95,0.00029056,15]
[377458928,1754416272855,-2434.74389024,0.00029068,2]
[377458929,1754416272865,-151.86,0.00029086,15]
[377458930,1754416272874,-153.24,0.00029096,15]
[377458931,1754416272883,-1000.0,0.000291,2]
[377458932,1754416272894,-461.15695721,0.000291,7]
[377458933,1754416272902,-231.72586818,0.000291,7]
[377458934,1754416272913,-527.3554621,0.000291,7]
[377458935,1754416272922,-160.0,0.000291,7]
[377458936,1754416272932,-423.02448967,0.00029123,2]
[377458937,1754416272941,-2524.82941417,0.00029123,2]
[377458938,1754416272950,-1986.03736301,0.00029147,2]
[377458939,1754416272960,-198.95,0.00029156,15]
[377458940,1754416272970,-2618.2481025,0.00029178,2]
[377458941,1754416272979,-151.86,0.00029186,15]
[377458942,1754416272988,-197.25,0.00029188,2]
[377458943,1754416272997,-153.24,0.00029196,15]
[377458944,1754416273008,-183.29688319,0.00029208,2]
[377458945,1754416273018,-2715.12328229,0.00029233,2]
[377458946,1754416273027,-198.95,0.00029256,15]
[377458947,1754416273036,-423.02448967,0.0002926,2]
[377458948,1754416273161,-151.86,0.00029286,15]
[377458949,1754416273171,-2815.58284374,0.00029288,2]
[377458950,1754416273180,-153.24,0.00029296,15]
[377458951,1754416273190,-460.0,0.00029315,2]
[377458952,1754416273200,-460.0,0.00029315,2]
[377458953,1754416273210,-857.66,0.00029315,2]
[377458954,1754416273220,-663.23,0.00029315,2]
[377458955,1754416273229,-460.0,0.00029315,2]
[377458956,1754416273239,-658.86,0.00029315,2]
[377458957,1754416273248,-6772.75,0.00029315,2]
[377458958,1754416273257,-1541.2,0.00029315,2]
[377458959,1754416273266,-460.0,0.00029315,2]
[377458960,1754416273275,-460.0,0.00029315,2]
[377458961,1754416273285,-812.68,0.00029315,2]
[377458962,1754416273296,-460.0,0.00029315,2]
[377458963,1754416273317,-740.38,0.00029315,2]
[377458964,1754416273327,-1550.45,0.00029315,2]
[377458965,1754416273336,-532.66,0.00029315,2]
[377458966,1754416273346,-474.15414276,0.00029315,2]
[377458967,1754416273359,-151.0,0.00029315,7]
[377458968,1754416273368,-460.0,0.00029315,2]
[377458969,1754416273378,-1978.84,0.00029315,2]
[377458970,1754416273387,-1378.33,0.00029315,2]
[377458971,1754416273397,-460.0,0.00029315,2]
[377458972,1754416273407,-151.0,0.00029315,7]
[377458973,1754416273416,-467.86488049,0.00029315,2]
[377458974,1754416273428,-460.0,0.00029315,2]
[377458975,1754416273439,-460.0,0.00029315,2]
[377458976,1754416273448,-460.0,0.00029315,2]
[377458977,1754416273465,-460.0,0.00029315,2]
[377458978,1754416273485,-460.0,0.00029315,2]
[377458979,1754416273495,-460.0,0.00029315,2]
[377458980,1754416273504,-475.00294509,0.00029315,2]
[377458981,1754416273513,-613.34,0.00029315,2]
[377458982,1754416273523,-460.0,0.00029315,2]
[377458983,1754416273533,-460.0,0.00029315,2]
[377458984,1754416273542,-460.0,0.00029315,2]
[377458985,1754416273555,-460.0,0.00029315,2]
[377458986,1754416273566,-460.0,0.00029315,2]
[377458987,1754416273575,-460.0,0.00029315,2]
[377458988,1754416273585,-460.0,0.00029315,2]
[377458989,1754416273595,-460.0,0.00029315,2]
[377458990,1754416273604,-460.0,0.00029315,2]
[377458991,1754416273614,-460.0,0.00029315,2]
[377458992,1754416273624,-460.0,0.00029315,2]
[377458993,1754416273633,-460.0,0.00029315,2]
[377458994,1754416273642,-596.73870002,0.00029315,2]
[377458995,1754416273651,-460.0,0.00029315,2]
[377458996,1754416273661,-460.0,0.00029315,2]
[377458997,1754416273670,-1321.58,0.00029315,2]
[377458998,1754416273680,-460.0,0.00029315,2]
[377458999,1754416273690,-460.0,0.00029315,2]
[377459000,1754416273700,-1103.62,0.00029315,2]
[377459001,1754416273709,-460.0,0.00029315,2]
[377459002,1754416273719,-151.0,0.00029315,7]
[377459003,1754416273728,-7164.38,0.00029315,2]
[377459004,1754416273737,-460.99,0.00029315,2]
[377459005,1754416273747,-460.0,0.00029315,2]
[377459006,1754416273756,-460.0,0.00029315,2]
[377459007,1754416273765,-460.0,0.00029315,2]
[377459008,1754416273774,-460.0,0.00029315,2]
[377459009,1754416273783,-407.26373,0.00029315,7]
[377459010,1754416273792,-460.0,0.00029315,2]
[377459011,1754416273802,-460.0,0.00029315,2]
[377459012,1754416273811,-407.26373,0.00029315,7]
[377459013,1754416273820,-91405.03,0.00029315,2]
[377459014,1754416273829,-460.0,0.00029315,2]
[377459015,1754416273838,-460.0,0.00029315,2]
[377459016,1754416273848,-151.0,0.00029315,7]
[377459017,1754416273857,-1342.06,0.00029315,2]
[377459018,1754416273866,-460.0,0.00029315,2]
[377459019,1754416273876,-151.0,0.00029315,7]
[377459020,1754416273885,-502.21,0.00029315,2]
[377459021,1754416273895,-500.0,0.00029315,2]
[377459022,1754416273905,-151.0,0.00029315,7]
[377459023,1754416273914,-151.0,0.00029315,7]
[377459024,1754416273923,-460.0,0.00029315,2]
[377459025,1754416273932,-1250.59,0.00029315,2]
[377459026,1754416273942,-1881.28,0.00029315,2]
[377459027,1754416273951,-824.53,0.00029315,2]
[377459028,1754416273960,-1138.15,0.00029315,2]
[377459029,1754416273970,-3340.06,0.00029315,2]
[377459030,1754416273979,-460.0,0.00029315,2]
[377459031,1754416273989,-460.0,0.00029315,2]
[377459032,1754416274000,-460.0,0.00029315,2]
[377459033,1754416274010,-460.0,0.00029315,2]
[377459034,1754416274019,-460.0,0.00029315,2]
[377459035,1754416274028,-151.0,0.00029315,7]
[377459036,1754416274037,-460.0,0.00029315,2]
[377459037,1754416274048,-216.35496516,0.00029315,2]
[377459038,1754416274057,-494.61,0.00029315,2]
[377459039,1754416274068,-468.15978443,0.00029315,2]
[377459040,1754416274077,-460.0,0.00029315,2]
[377459041,1754416274087,-460.0,0.00029315,2]
[377459042,1754416274098,-567.26,0.00029315,2]
[377459043,1754416274107,-460.0,0.00029315,2]
[377459044,1754416274117,-500.0,0.00029315,5]
[377459045,1754416274126,-460.0,0.00029315,2]
[377459046,1754416274136,-1437.23,0.00029315,2]
[377459047,1754416274146,-460.0,0.00029315,2]
[377459048,1754416274155,-2164.48,0.00029315,2]
[377459049,1754416274164,-1086.69,0.00029315,2]
[377459050,1754416274174,-468.93676414,0.00029315,2]
[377459051,1754416274184,-1308.5,0.00029315,2]
[377459052,1754416274194,-460.0,0.00029315,2]
[377459053,1754416274203,-460.0,0.00029315,2]
[377459054,1754416274212,-460.0,0.00029315,2]
[377459055,1754416274222,-1242.29,0.00029315,2]
[377459056,1754416274231,-460.0,0.00029315,2]
[377459057,1754416274240,-460.0,0.00029315,2]
[377459058,1754416274249,-460.0,0.00029315,2]
[377459059,1754416274258,-151.0,0.00029315,7]
[377459060,1754416274266,-460.0,0.00029315,2]
[377459061,1754416274276,-738.23,0.00029315,2]
[377459062,1754416274285,-460.0,0.00029315,2]
[377459063,1754416274294,-460.0,0.00029315,2]
[377459064,1754416274304,-460.0,0.00029315,2]
[377459065,1754416274313,-1758.45,0.00029315,2]
[377459066,1754416274322,-1709.46,0.00029315,2]
[377459067,1754416274331,-460.0,0.00029315,2]
[377459068,1754416274340,-6104.81,0.00029315,2]
[377459069,1754416274351,-181.88151,0.00029315,7]
[377459070,1754416274361,-460.0,0.00029315,2]
[377459071,1754416274370,-460.0,0.00029315,2]
[377459072,1754416274380,-902.91,0.00029315,2]
[377459073,1754416274389,-710.17,0.00029315,2]
[377459074,1754416274401,-181.88151,0.00029315,7]
[377459075,1754416274410,-1606.27,0.00029315,2]
[377459076,1754416274420,-819.41,0.00029315,2]
[377459077,1754416274430,-300.31004728,0.00029315,2]
[377459078,1754416274440,-1844.87,0.00029315,2]
[377459079,1754416274449,-460.0,0.00029315,2]
[377459080,1754416274459,-460.0,0.00029315,2]
[377459081,1754416274468,-460.0,0.00029315,2]
[377459082,1754416274478,-460.0,0.00029315,2]
[377459083,1754416274487,-460.0,0.00029315,2]
[377459084,1754416274497,-881.55,0.00029315,2]
[377459085,1754416274506,-251.0116071,0.00029315,2]
[377459086,1754416274516,-465.84102802,0.00029315,2]
[377459087,1754416274525,-460.0,0.00029315,2]
[377459088,1754416274535,-460.0,0.00029315,2]
[377459089,1754416274544,-558.16,0.00029315,2]
[377459090,1754416274557,-518.54,0.00029315,2]
[377459091,1754416274566,-460.0,0.00029315,2]
[377459092,1754416274575,-175.0,0.00029315,7]
[377459093,1754416274585,-460.0,0.00029315,2]
[377459094,1754416274595,-1561.24,0.00029315,2]
[377459095,1754416274605,-175.0,0.00029315,7]
[377459096,1754416274614,-460.0,0.00029315,2]
[377459097,1754416274624,-460.0,0.00029315,2]
[377459098,1754416274633,-3008.19,0.00029315,2]
[377459099,1754416274642,-460.0,0.00029315,2]
[377459100,1754416274652,-844.75,0.00029315,2]
[377459101,1754416274663,-262.69366919,0.00029315,2]
[377459102,1754416274672,-460.0,0.00029315,2]
[377459103,1754416274681,-460.0,0.00029315,2]
[377459104,1754416274690,-1209.84,0.00029315,2]
[377459105,1754416274700,-1526.12,0.00029315,2]
[377459106,1754416274709,-460.0,0.00029315,2]
[377459107,1754416274719,-734.51,0.00029315,2]
[377459108,1754416274729,-460.0,0.00029315,2]
[377459109,1754416274738,-674.37,0.00029315,2]
[377459110,1754416274747,-460.0,0.00029315,2]
[377459111,1754416274757,-460.0,0.00029315,2]
[377459112,1754416274766,-468.22517412,0.00029315,2]
[377459113,1754416274776,-844.14,0.00029315,2]
[377459114,1754416274784,-1000.34,0.00029315,2]
[377459115,1754416274794,-2193.9,0.00029315,2]
[377459116,1754416274803,-460.0,0.00029315,2]
[377459117,1754416274813,-249.450475,0.00029315,7]
[377459118,1754416274822,-460.0,0.00029315,2]
[377459119,1754416274831,-460.0,0.00029315,2]
[377459120,1754416274842,-460.0,0.00029315,2]
[377459121,1754416274851,-519.7,0.00029315,2]
[377459122,1754416274861,-460.0,0.00029315,2]
[377459123,1754416274871,-249.450475,0.00029315,7]
[377459124,1754416274880,-460.0,0.00029315,2]
[377459125,1754416274889,-460.0,0.00029315,2]
[377459126,1754416274898,-482.37343834,0.00029315,2]
[377459127,1754416274907,-460.0,0.00029315,2]
[377459128,1754416274917,-460.0,0.00029315,2]
[377459129,1754416274927,-748.97,0.00029315,2]
[377459130,1754416274936,-460.0,0.00029315,2]
[377459131,1754416274946,-460.0,0.00029315,2]
[377459132,1754416274955,-460.0,0.00029315,2]
[377459133,1754416274964,-460.0,0.00029315,2]
[377459134,1754416274973,-3138.65,0.00029315,2]
[377459135,1754416274982,-460.0,0.00029315,2]
[377459136,1754416274996,-489.33,0.00029315,2]
[377459137,1754416275005,-460.0,0.00029315,2]
[377459138,1754416275015,-460.0,0.00029315,2]
[377459139,1754416275025,-460.0,0.00029315,2]
[377459140,1754416275035,-460.0,0.00029315,2]
[377459141,1754416275044,-460.0,0.00029315,2]
[377459142,1754416275053,-3180.74,0.00029315,2]
[377459143,1754416275063,-1930.76,0.00029315,2]
[377459144,1754416275072,-2230.2,0.00029315,2]
[377459145,1754416275082,-460.0,0.00029315,2]
[377459146,1754416275091,-460.0,0.00029315,2]
[377459147,1754416275103,-460.0,0.00029315,2]
[377459148,1754416275113,-460.0,0.00029315,2]
[377459149,1754416275122,-560.35,0.00029315,2]
[377459150,1754416275131,-727.87,0.00029315,2]
[377459151,1754416275140,-460.0,0.00029315,2]
[377459152,1754416275149,-460.0,0.00029315,2]
[377459153,1754416275159,-460.0,0.00029315,2]
[377459154,1754416275169,-1127.9,0.00029315,2]
[377459155,1754416275178,-460.0,0.00029315,2]
[377459156,1754416275187,-460.0,0.00029315,2]
[377459157,1754416275197,-460.0,0.00029315,2]
[377459158,1754416275206,-460.0,0.00029315,2]
[377459159,1754416275215,-1550.17,0.00029315,2]
[377459160,1754416275224,-460.0,0.00029315,2]
[377459161,1754416275234,-460.0,0.00029315,2]
[377459162,1754416275243,-460.0,0.00029315,2]
[377459163,1754416275252,-569.87,0.00029315,2]
[377459164,1754416275263,-2106.63,0.00029315,2]
[377459165,1754416275273,-3854.83,0.00029315,2]
[377459166,1754416275283,-460.0,0.00029315,2]
[377459167,1754416275292,-714.24,0.00029315,2]
[377459168,1754416275302,-541.08,0.00029315,2]
[377459169,1754416275311,-505.17341474,0.00029316,5]
[377459170,1754416275320,-1000.0,0.00029316,5]
[377459171,1754416275330,-1143.90803113,0.00029316,2]
[377459172,1754416275339,-2000.0,0.00029316,5]
[377459173,1754416275353,-2000.0,0.00029316,5]
[377459174,1754416275363,-2919.75940895,0.00029343,2]
[377459175,1754416275372,-460.0,0.00029344,2]
[377459176,1754416275382,-198.95,0.00029356,15]
[377459177,1754416275391,-600.0,0.00029357,2]
[377459178,1754416275401,-472.79,0.00029357,2]
[377459179,1754416275411,-679.3,0.00029363,7]
[377459180,1754416275420,-151.86,0.00029386,15]
[377459181,1754416275431,-834.63511551,0.00029392,2]
[377459182,1754416275441,-153.24,0.00029396,15]
[377459183,1754416275450,-423.02448967,0.00029397,2]
[377459184,1754416275459,-3027.79050709,0.00029398,2]
[377459185,1754416275563,-160.0,0.000294,7]
[377459186,1754416275582,-800.0,0.00029451,2]
[377459187,1754416275593,-3139.81875585,0.00029453,2]
[377459188,1754416275602,-198.95,0.00029456,15]
[377459189,1754416275612,-151.86,0.00029486,15]
[377459190,1754416275621,-153.24,0.00029496,15]
[377459191,1754416275630,-1177.89532206,0.00029508,2]
[377459192,1754416275639,-500.0,0.0002952,5]
[377459193,1754416275648,-800.0,0.00029521,2]
[377459194,1754416275657,-423.02448967,0.00029534,2]
[377459195,1754416275667,-198.95,0.00029556,15]
[377459196,1754416275676,-495.55245596,0.0002956,5]
[377459197,1754416275686,-250.0,0.00029564,5]
[377459198,1754416275695,-1428.51014532,0.00029564,5]
[377459199,1754416275704,-2500.0,0.00029564,5]
[377459200,1754416275713,-151.86,0.00029586,15]
[377459201,1754416275723,-460.0,0.00029589,2]
[377459202,1754416275732,-236.42969565,0.00029589,2]
[377459203,1754416275741,-857.66,0.00029589,2]
[377459204,1754416275750,-663.23,0.00029589,2]
[377459205,1754416275758,-460.0,0.00029589,2]
[377459206,1754416275768,-658.86,0.00029589,2]
[377459207,1754416275778,-6772.75,0.00029589,2]
[377459208,1754416275788,-1541.2,0.00029589,2]
[377459209,1754416275797,-472.67347861,0.00029589,2]
[377459210,1754416275806,-151.0,0.00029589,7]
[377459211,1754416275816,-151.0,0.00029589,7]
[377459212,1754416275825,-151.0,0.00029589,7]
[377459213,1754416275835,-460.0,0.00029589,2]
[377459214,1754416275844,-812.68,0.00029589,2]
[377459215,1754416275853,-417.83898524,0.00029589,2]
[377459216,1754416275862,-740.38,0.00029589,2]
[377459217,1754416275872,-151.0,0.00029589,7]
[377459218,1754416275881,-151.0,0.00029589,7]
[377459219,1754416275890,-1550.45,0.00029589,2]
[377459220,1754416275900,-532.66,0.00029589,2]
[377459221,1754416275910,-151.0,0.00029589,7]
[377459222,1754416275921,-151.0,0.00029589,7]
[377459223,1754416275930,-151.830915,0.00029589,7]
[377459224,1754416275939,-151.0,0.00029589,7]
[377459225,1754416275949,-460.0,0.00029589,2]
[377459226,1754416275958,-151.0,0.00029589,7]
[377459227,1754416275967,-151.0,0.00029589,7]
[377459228,1754416275976,-1978.84,0.00029589,2]
[377459229,1754416275985,-1378.33,0.00029589,2]
[377459230,1754416275995,-460.0,0.00029589,2]
[377459231,1754416276005,-151.0,0.00029589,7]
[377459232,1754416276015,-151.0,0.00029589,7]
[377459233,1754416276023,-151.0,0.00029589,7]
[377459234,1754416276032,-460.0,0.00029589,2]
[377459235,1754416276041,-460.0,0.00029589,2]
[377459236,1754416276051,-467.25364845,0.00029589,2]
[377459237,1754416276060,-460.0,0.00029589,2]
[377459238,1754416276069,-460.0,0.00029589,2]
[377459239,1754416276078,-321.14,0.00029589,2]
[377459240,1754416276087,-613.34,0.00029589,2]
[377459241,1754416276097,-460.0,0.00029589,2]
[377459242,1754416276107,-460.0,0.00029589,2]
[377459243,1754416276116,-460.0,0.00029589,2]
[377459244,1754416276125,-460.0,0.00029589,2]
[377459245,1754416276134,-460.0,0.00029589,2]
[377459246,1754416276144,-557.34488025,0.00029589,2]
[377459247,1754416276153,-460.0,0.00029589,2]
[377459248,1754416276163,-460.0,0.00029589,2]
[377459249,1754416276173,-466.24576895,0.00029589,2]
[377459250,1754416276182,-460.0,0.00029589,2]
[377459251,1754416276192,-460.0,0.00029589,2]
[377459252,1754416276201,-151.0,0.00029589,7]
[377459253,1754416276210,-460.0,0.00029589,2]
[377459254,1754416276219,-460.0,0.00029589,2]
[377459255,1754416276228,-460.0,0.00029589,2]
[377459256,1754416276237,-1321.58,0.00029589,2]
[377459257,1754416276246,-151.0,0.00029589,7]
[377459258,1754416276256,-460.0,0.00029589,2]
[377459259,1754416276265,-460.0,0.00029589,2]
[377459260,1754416276274,-1103.62,0.00029589,2]
[377459261,1754416276283,-460.0,0.00029589,2]
[377459262,1754416276292,-7164.38,0.00029589,2]
[377459263,1754416276302,-151.0,0.00029589,7]
[377459264,1754416276311,-460.99,0.00029589,2]
[377459265,1754416276320,-151.0,0.00029589,7]
[377459266,1754416276329,-460.0,0.00029589,2]
[377459267,1754416276338,-463.04354074,0.00029589,2]
[377459268,1754416276351,-460.0,0.00029589,2]
[377459269,1754416276360,-460.0,0.00029589,2]
[377459270,1754416276369,-460.0,0.00029589,2]
[377459271,1754416276379,-91405.03,0.00029589,2]
[377459272,1754416276389,-460.0,0.00029589,2]
[377459273,1754416276399,-460.0,0.00029589,2]
[377459274,1754416276409,-151.0,0.00029589,7]
[377459275,1754416276419,-1342.06,0.00029589,2]
[377459276,1754416276431,-460.0,0.00029589,2]
[377459277,1754416276441,-502.21,0.00029589,2]
[377459278,1754416276451,-500.0,0.00029589,2]
[377459279,1754416276460,-151.0,0.00029589,7]
[377459280,1754416276469,-460.0,0.00029589,2]
[377459281,1754416276479,-1250.59,0.00029589,2]
[377459282,1754416276488,-1881.28,0.00029589,2]
[377459283,1754416276497,-824.53,0.00029589,2]
[377459284,1754416276508,-1138.15,0.00029589,2]
[377459285,1754416276517,-3340.06,0.00029589,2]
[377459286,1754416276527,-460.0,0.00029589,2]
[377459287,1754416276536,-460.0,0.00029589,2]
[377459288,1754416276546,-460.0,0.00029589,2]
[377459289,1754416276558,-460.0,0.00029589,2]
[377459290,1754416276567,-460.0,0.00029589,2]
[377459291,1754416276577,-460.0,0.00029589,2]
[377459292,1754416276586,-494.61,0.00029589,2]
[377459293,1754416276599,-460.0,0.00029589,2]
[377459294,1754416276609,-460.0,0.00029589,2]
[377459295,1754416276619,-567.26,0.00029589,2]
[377459296,1754416276630,-460.0,0.00029589,2]
[377459297,1754416276641,-237.5075051,0.00029589,5]
[377459298,1754416276652,-460.0,0.00029589,2]
[377459299,1754416276661,-460.0,0.00029589,2]
[377459300,1754416276672,-1437.23,0.00029589,2]
[377459301,1754416276681,-2164.48,0.00029589,2]
[377459302,1754416276691,-1086.69,0.00029589,2]
[377459303,1754416276700,-1308.5,0.00029589,2]
[377459304,1754416276710,-460.0,0.00029589,2]
[377459305,1754416276720,-460.0,0.00029589,2]
[377459306,1754416276730,-460.0,0.00029589,2]
[377459307,1754416276739,-1242.29,0.00029589,2]
[377459308,1754416276748,-460.0,0.00029589,2]
[377459309,1754416276758,-460.0,0.00029589,2]
[377459310,1754416276767,-234.22007195,0.00029589,2]
[377459311,1754416276777,-460.0,0.00029589,2]
[377459312,1754416276787,-738.23,0.00029589,2]
[377459313,1754416276796,-460.0,0.00029589,2]
[377459314,1754416276806,-460.0,0.00029589,2]
[377459315,1754416276815,-460.0,0.00029589,2]
[377459316,1754416276824,-1709.46,0.00029589,2]
[377459317,1754416276834,-6104.81,0.00029589,2]
[377459318,1754416276845,-1758.45,0.00029589,2]
[377459319,1754416276854,-571.13,0.00029589,2]
[377459320,1754416276863,-460.0,0.00029589,2]
[377459321,1754416276873,-460.0,0.00029589,2]
[377459322,1754416276882,-902.91,0.00029589,2]
[377459323,1754416276891,-710.17,0.00029589,2]
[377459324,1754416276901,-1606.27,0.00029589,2]
[377459325,1754416276910,-819.41,0.00029589,2]
[377459326,1754416276919,-1844.87,0.00029589,2]
[377459327,1754416276929,-460.0,0.00029589,2]
[377459328,1754416276938,-460.0,0.00029589,2]
[377459329,1754416276947,-460.0,0.00029589,2]
[377459330,1754416276958,-460.0,0.00029589,2]
[377459331,1754416276967,-460.0,0.00029589,2]
[377459332,1754416276976,-881.55,0.00029589,2]
[377459333,1754416276986,-464.91017918,0.00029589,2]
[377459334,1754416276995,-460.0,0.00029589,2]
[377459335,1754416277004,-558.16,0.00029589,2]
[377459336,1754416277014,-518.54,0.00029589,2]
[377459337,1754416277023,-460.0,0.00029589,2]
[377459338,1754416277032,-519.76571343,0.00029589,2]
[377459339,1754416277041,-1561.24,0.00029589,2]
[377459340,1754416277050,-460.0,0.00029589,2]
[377459341,1754416277060,-460.0,0.00029589,2]
[377459342,1754416277069,-3008.19,0.00029589,2]
[377459343,1754416277079,-460.0,0.00029589,2]
[377459344,1754416277088,-460.0,0.00029589,2]
[377459345,1754416277097,-460.0,0.00029589,2]
[377459346,1754416277107,-844.75,0.00029589,2]
[377459347,1754416277116,-1209.84,0.00029589,2]
[377459348,1754416277125,-1526.12,0.00029589,2]
[377459349,1754416277135,-460.0,0.00029589,2]
[377459350,1754416277144,-734.51,0.00029589,2]
[377459351,1754416277153,-460.0,0.00029589,2]
[377459352,1754416277162,-674.37,0.00029589,2]
[377459353,1754416277172,-460.0,0.00029589,2]
[377459354,1754416277181,-844.14,0.00029589,2]
[377459355,1754416277190,-1000.34,0.00029589,2]
[377459356,1754416277199,-2193.9,0.00029589,2]
[377459357,1754416277208,-460.0,0.00029589,2]
[377459358,1754416277217,-470.68753946,0.00029589,2]
[377459359,1754416277227,-465.66649194,0.00029589,2]
[377459360,1754416277236,-460.0,0.00029589,2]
[377459361,1754416277246,-519.7,0.00029589,2]
[377459362,1754416277255,-460.0,0.00029589,2]
[377459363,1754416277264,-460.0,0.00029589,2]
[377459364,1754416277272,-467.30123933,0.00029589,2]
[377459365,1754416277281,-460.0,0.00029589,2]
[377459366,1754416277289,-460.0,0.00029589,2]
[377459367,1754416277297,-748.97,0.00029589,2]
[377459368,1754416277306,-460.0,0.00029589,2]
[377459369,1754416277315,-466.61584917,0.00029589,2]
[377459370,1754416277324,-460.0,0.00029589,2]
[377459371,1754416277332,-460.0,0.00029589,2]
[377459372,1754416277341,-3138.65,0.00029589,2]
[377459373,1754416277358,-489.33,0.00029589,2]
[377459374,1754416277369,-460.0,0.00029589,2]
[377459375,1754416277378,-460.0,0.00029589,2]
[377459376,1754416277388,-460.0,0.00029589,2]
[377459377,1754416277398,-460.0,0.00029589,2]
[377459378,1754416277407,-3180.74,0.00029589,2]
[377459379,1754416277417,-460.0,0.00029589,2]
[377459380,1754416277426,-1930.76,0.00029589,2]
[377459381,1754416277435,-2230.2,0.00029589,2]
[377459382,1754416277445,-460.0,0.00029589,2]
[377459383,1754416277454,-460.0,0.00029589,2]
[377459384,1754416277464,-1712.627473,0.00029589,7]
[377459385,1754416277473,-460.0,0.00029589,2]
[377459386,1754416277483,-460.0,0.00029589,2]
[377459387,1754416277492,-560.35,0.00029589,2]
[377459388,1754416277502,-727.87,0.00029589,2]
[377459389,1754416277511,-460.0,0.00029589,2]
[377459390,1754416277521,-1712.627473,0.00029589,7]
[377459391,1754416277531,-460.0,0.00029589,2]
[377459392,1754416277540,-1127.9,0.00029589,2]
[377459393,1754416277550,-460.0,0.00029589,2]
[377459394,1754416277560,-460.0,0.00029589,2]
[377459395,1754416277569,-460.0,0.00029589,2]
[377459396,1754416277579,-460.0,0.00029589,2]
[377459397,1754416277588,-460.0,0.00029589,2]
[377459398,1754416277597,-1550.17,0.00029589,2]
[377459399,1754416277607,-460.0,0.00029589,2]
[377459400,1754416277616,-460.0,0.00029589,2]
[377459401,1754416277626,-520.81580791,0.00029589,2]
[377459402,1754416277635,-569.87,0.00029589,2]
[377459403,1754416277644,-2106.63,0.00029589,2]
[377459404,1754416277749,-3854.83,0.00029589,2]
[377459405,1754416277768,-460.0,0.00029589,2]
[377459406,1754416277778,-714.24,0.00029589,2]
[377459407,1754416277788,-541.08,0.00029589,2]
[377459408,1754416277797,-153.24,0.00029596,15]
[377459409,1754416277807,-1000.0,0.000296,2]
[377459410,1754416277816,-800.0,0.00029646,2]
[377459411,1754416277825,-800.0,0.00029654,2]
[377459412,1754416277835,-198.95,0.00029656,15]
[377459413,1754416277844,-423.02448967,0.00029671,2]
[377459414,1754416277854,-151.86,0.00029686,15]
[377459415,1754416277863,-153.24,0.00029696,15]
[377459416,1754416277873,-198.95,0.00029756,15]
[377459417,1754416277883,-157.06354814,0.00029781,2]
[377459418,1754416277892,-151.86,0.00029786,15]
[377459419,1754416277901,-800.0,0.00029789,2]
[377459420,1754416277911,-153.24,0.00029796,15]
[377459421,1754416277920,-423.02448967,0.00029808,2]
[377459422,1754416277930,-800.0,0.00029817,2]
[377459423,1754416277940,-800.0,0.00029835,2]
[377459424,1754416277950,-198.95,0.00029856,15]